Workbook

Sheet NSU
B1: Veera Jacklin | E1: 16.4.2003 Muhos
B2: SUPERPESIS | E2: RUNKOSARJA | I2: Kärkilyönnit (KL), pesänvälit | P2: Ylempi loppusarja | U2: Alempi loppusarja | AB2: Arvo-ottelut ja mitalit
B3: Vuosi | C3: Sija | D3: Seura | E3: OTT | F3: KUN | G3: LÖI | H3: TOI | I3: KL | J3: 0 > 1 | K3: 1 > 2 | L3: 2 > 3 | M3: 3 > k | N3: KL-% | P3: OTT | Q3: KUN | R3: LÖI | S3: TOI | T3: KL | U3: OTT | V3: KUN | W3: LÖI | X3: TOI | Y3: KL | Z3: IL | AA3: LL | AB3: Halli | AC3: K | AD3: H | AE3: P
B4: 2018 | C4: 4. | D4: MuPS | F4: suomensarja
B5: 2019 | C5: 1. | D5: MuPS | F5: suomensarja
B6: 2020 | C6: 1. | D6: KeKi 2 | F6: suomensarja
B7: 2021 | C7: 6. | D7: TyTe | F7: suomensarja
B8: 2022 | C8: 2. | D8: KeKi 2 | F8: suomensarja
B9: 2022 | C9: 4. | D9: PattU | F9: ykköspesis
B10: 2023 | C10: 12. | D10: KeKi | E10: 2 | F10: 0 | G10: 0 | H10: 0 | I10: 0 | J10: 0 | K10: 0 | L10: 0 | M10: 0 | N10: 0.0 % | O10: 3 | U10: 3 | V10: 0 | W10: 2 | X10: 0 | Y10: 9
B11: Yhteensä | E11: =SUM(E4:E10) -> 2 | F11: =SUM(F4:F10) -> 0 | G11: =SUM(G4:G10) -> 0 | H11: =SUM(H4:H10) -> 0 | I11: =SUM(I4:I10) -> 0 | J11: =SUM(J4:J10) -> 0 | K11: =SUM(K4:K10) -> 0 | L11: =SUM(L4:L10) -> 0 | M11: =SUM(M4:M10) -> 0 | N11: =PRODUCT(I11/O11) -> 0.0 % | O11: =SUM(O4:O10) -> 3 | P11: =SUM(P4:P10) -> 0 | Q11: =SUM(Q4:Q10) -> 0 | R11: =SUM(R4:R10) -> 0 | S11: =SUM(S4:S10) -> 0 | T11: =SUM(T4:T10) -> 0 | U11: =SUM(U4:U10) -> 3 | V11: =SUM(V4:V10) -> 0 | W11: =SUM(W4:W10) -> 2 | X11: =SUM(X4:X10) -> 0 | Y11: =SUM(Y4:Y10) -> 9 | Z11: =SUM(Z4:Z10) -> 0 | AA11: =SUM(AA4:AA10) -> 0 | AB11: =SUM(AB4:AB10) -> 0 | AC11: =SUM(AC4:AC10) -> 0 | AD11: =SUM(AD4:AD10) -> 0 | AE11: =SUM(AE4:AE10) -> 0
B12: Pesispörssi | D12: 57.3
B14: URA SUPERISSA | E14: OTT | F14: KUN | G14: LÖI | H14: TOI | I14: KL | K14: ka/L | L14: ka/T | M14: ka/KL | N14: K - % | P14: ENSIMMÄISET
B15: Runkosarja | E15: =PRODUCT(E11) -> 2 | F15: =PRODUCT(F11) -> 0 | G15: =PRODUCT(G11) -> 0 | H15: =PRODUCT(H11) -> 0 | I15: =PRODUCT(I11) -> 0 | K15: =PRODUCT((F15+G15)/E15) -> 0.00 | L15: =PRODUCT(H15/E15) -> 0.00 | M15: =PRODUCT(I15/E15) -> 0.00 | N15: =PRODUCT(N11) -> 0.0 % | O15: =PRODUCT(O11) -> 3 | P15: Ottelu | R15: 15.05. 2014 ViPa - Pesäkarhut 0-2 (0-3, 2-10) | AA15: 1. ottelu | AC15: 20 v 11 kk 25 pv
B16: Ylempi loppusarja | P16: Lyöty
B17: Alempi loppusarja | E17: 3 | F17: 0 | G17: 2 | H17: 0 | I17: 9 | K17: =PRODUCT((F17+G17)/E17) -> 0.67 | L17: =PRODUCT(H17/E17) -> 0.00 | M17: =PRODUCT(I17/E17) -> 3.00 | N17: =PRODUCT(I17/O17) -> 52.9 % | O17: 17 | P17: Tuotu
B18: KAIKKI | E18: =SUM(E15:E17) -> 5 | F18: =SUM(F15:F17) -> 0 | G18: =SUM(G15:G17) -> 2 | H18: =SUM(H15:H17) -> 0 | I18: =SUM(I15:I17) -> 9 | K18: =PRODUCT((F18+G18)/E18) -> 0.40 | L18: =PRODUCT(H18/E18) -> 0.00 | M18: =PRODUCT(I18/E18) -> 1.80 | N18: =PRODUCT(I18/O18) -> 45.0 % | O18: =SUM(O15:O17) -> 20 | P18: Kunnari
B20: Tyttölukkari 2010, 2011
B22: Seurat | D22: MuPS = Muhoksen Pallo-Salamat (1969), kasvattajaseura
D23: KeKi = Kempeleen Kiri (1915)
D24: TyTe = Tyrnävän Tempaus (1921)
D25: PattU = Pattijoen Urheilijat (1928)

Sheet NYP,NSS
B1: Veera Jacklin | E1: 16.4.2003 Muhos
B2: YKKÖSPESIS | E2: Runkosarja | L2: Runkosarja TOP-10 | Q2: Jatkosarjat | X2: SUOMENSARJA | AA2: Runkosarja | AH2: Runkosarja TOP-10 | AM2: Jatkosarjat
B3: Vuosi | C3: Sija | D3: Seura | E3: OTT | F3: KUN | G3: LÖI | H3: TOI | I3: KL | J3: KL-% | L3: LÖI | M3: TOI | N3: L+T | O3: KL | Q3: OTT | R3: KUN | S3: LÖI | T3: TOI | U3: KL | V3: KL-% | X3: Vuosi | Y3: Sija | Z3: Seura | AA3: OTT | AB3: KUN | AC3: LÖI | AD3: TOI | AE3: KL | AF3: KL-% | AH3: LÖI | AI3: TOI | AJ3: L+T | AK3: KL | AM3: OTT | AN3: KUN | AO3: LÖI | AP3: TOI | AQ3: KL | AR3: KL-%
X4: 2018 | Y4: 4. | Z4: MuPS | AA4: 10 | AB4: 0 | AC4: 1 | AD4: 7 | AE4: 24 | AF4: 60.0 % | AG4: 40 | AM4: 1 | AN4: 0 | AO4: 0 | AP4: 0 | AQ4: 3 | AR4: 100.0 % | AS4: 3
X5: 2019 | Y5: 1. | Z5: MuPS | AA5: 7 | AB5: 0 | AC5: 2 | AD5: 8 | AE5: 27 | AF5: 69.2 % | AG5: 39 | AM5: 7 | AN5: 0 | AO5: 1 | AP5: 5 | AQ5: 13 | AR5: 43.3 % | AS5: 30
X6: 2020 | Y6: 1. | Z6: KeKi 2 | AA6: 6 | AB6: 0 | AC6: 3 | AD6: 11 | AE6: 18 | AF6: 48.7 % | AG6: 37
B7: 2021 | C7: 6. | D7: TyTe | E7: 4 | F7: 0 | G7: 2 | H7: 1 | I7: 5 | J7: 35.7 % | K7: 14 | Q7: 2 | R7: 0 | S7: 0 | T7: 2 | U7: 10 | V7: 71.4 % | W7: 14
B9: YHTEENSÄ | E9: =SUM(E4:E8) -> 4 | F9: =SUM(F4:F8) -> 0 | G9: =SUM(G4:G8) -> 2 | H9: =SUM(H4:H8) -> 1 | I9: =SUM(I4:I8) -> 5 | J9: =PRODUCT(I9/K9) -> 35.7 % | K9: =SUM(K4:K8) -> 14.0016802 | Q9: =SUM(Q4:Q8) -> 2 | R9: =SUM(R4:R8) -> 0 | S9: =SUM(S4:S8) -> 0 | T9: =SUM(T4:T8) -> 2 | U9: =SUM(U4:U8) -> 10 | V9: =PRODUCT(U9/W9) -> 71.4 % | W9: =SUM(W4:W8) -> 14 | X9: YHTEENSÄ | AA9: =SUM(AA4:AA8) -> 23 | AB9: =SUM(AB4:AB8) -> 0 | AC9: =SUM(AC4:AC8) -> 6 | AD9: =SUM(AD4:AD8) -> 26 | AE9: =SUM(AE4:AE8) -> 69 | AF9: =PRODUCT(AE9/AG9) -> 59.5 % | AG9: =SUM(AG4:AG8) -> 116 | AM9: =SUM(AM4:AM8) -> 8 | AN9: =SUM(AN4:AN8) -> 0 | AO9: =SUM(AO4:AO8) -> 1 | AP9: =SUM(AP4:AP8) -> 5 | AQ9: =SUM(AQ4:AQ8) -> 16 | AR9: =PRODUCT(AQ9/AS9) -> 48.5 % | AS9: =SUM(AS4:AS8) -> 33
B11: KAIKKI OTTELUT | E11: OTT | F11: KUN | G11: LÖI | H11: TOI | I11: KL | J11: KL-% | L11: ka/L | M11: ka/T | N11: ka/l+t | O11: ka/kl | R11: Seurat | T11: MuPS = Muhoksen Pallo-Salamat (1969), kasvattajaseura
B12: SUPERPESIS | E12: 0 | F12: 0 | G12: 0 | H12: 0 | I12: 0 | J12: 0.0 % | K12: 0 | L12: 0.00 | M12: 0.00 | N12: 0.00 | O12: 0.00 | T12: KeKi = Kempeleen Kiri (1915)
B13: YKKÖSPESIS | E13: =PRODUCT(E9+Q9) -> 6 | F13: =PRODUCT(F9+R9) -> 0 | G13: =PRODUCT(G9+S9) -> 2 | H13: =PRODUCT(H9+T9) -> 3 | I13: =PRODUCT(I9+U9) -> 15 | J13: =PRODUCT(I13/K13) -> 53.6 % | K13: =PRODUCT(K9+W9) -> 28.0016802 | L13: =PRODUCT((F13+G13)/E13) -> 0.33 | M13: =PRODUCT(H13/E13) -> 0.50 | N13: =PRODUCT((F13+G13+H13)/E13) -> 0.83 | O13: =PRODUCT(I13/E13) -> 2.50 | T13: TyTe = Tyrnävän Tempaus (1921)
B14: SUOMENSARJA | E14: =PRODUCT(AA9+AM9) -> 31 | F14: =PRODUCT(AB9+AN9) -> 0 | G14: =PRODUCT(AC9+AO9) -> 7 | H14: =PRODUCT(AD9+AP9) -> 31 | I14: =PRODUCT(AE9+AQ9) -> 85 | J14: =PRODUCT(I14/K14) -> 57.0 % | K14: =PRODUCT(AG9+AS9) -> 149 | L14: =PRODUCT((F14+G14)/E14) -> 0.23 | M14: =PRODUCT(H14/E14) -> 1.00 | N14: =PRODUCT((F14+G14+H14)/E14) -> 1.23 | O14: =PRODUCT(I14/E14) -> 2.74
B15: YHTEENSÄ | E15: =SUM(E12:E14) -> 37 | F15: =SUM(F12:F14) -> 0 | G15: 9 | H15: 34 | I15: 100 | J15: =PRODUCT(I15/K15) -> 56.5 % | K15: =SUM(K12:K14) -> 177.0016802 | L15: =PRODUCT((F15+G15)/E15) -> 0.24 | M15: =PRODUCT(H15/E15) -> 0.92 | N15: =PRODUCT((F15+G15+H15)/E15) -> 1.16 | O15: =PRODUCT(I15/E15) -> 2.70
